bitfinex/quotes_SOLUSD_20250718
["timestamp","ask_amount","ask_price","bid_price","bid_amount"]
[1752851444036,30.16,178.68,178.65,17.67940192]
[1752851444274,0.69,178.67,178.65,17.67940192]
[1752851444760,30.16,178.68,178.66,17.67940192]
[1752851444957,30.16,178.68,178.67,17.67940192]
[1752851445165,30.16,178.68,178.65,0.68]
[1752851445331,30.16,178.68,178.67,17.67940192]
[1752851446754,30.16,178.68,178.67,18.39940192]
[1752851447068,30.16,178.68,178.67,17.67940192]
[1752851447256,35.75659726,178.68,178.67,17.67940192]
[1752851447672,35.75659726,178.68,178.66,17.67940192]
[1752851447846,35.75659726,178.68,178.65,17.67940192]
[1752851448161,35.75659726,178.68,178.66,17.67940192]
[1752851448581,88.2,178.67,178.66,17.67940192]
[1752851448942,88.2,178.67,178.66,11.58147623]
[1752851449352,93.7969105,178.67,178.66,11.58147623]
[1752851450368,6.3169105,178.67,178.65,11.58147623]
[1752851450578,30.88,178.66,178.63,11.58147623]
[1752851450865,100.50147623,178.65,178.6,11.58147623]
[1752851451073,118.36,178.64,178.59,1.5]
[1752851451271,119.08,178.64,178.6,11.58147623]
[1752851451569,20.3135733,178.63,178.56,6.3064]
[1752851451739,30.16,178.62,178.56,6.3064]
[1752851451954,30.16,178.62,178.58,11.58147623]
[1752851452251,30.16,178.62,178.55,1.6629]
[1752851452252,0.72,178.61,178.55,1.6629]
[1752851452467,41.74147623,178.6,178.55,13.24437623]
[1752851452688,0.72,178.59,178.55,11.58147623]
[1752851452860,30.88,178.58,178.54,11.58147623]
[1752851453061,30.16,178.58,178.56,11.58147623]
[1752851453464,5.6000448,178.57,178.55,11.58147623]
[1752851453664,88.2,178.62,178.56,12.30147623]
[1752851453858,30.16,178.61,178.59,11.58147623]
[1752851454061,35.75879066,178.61,178.59,11.58147623]
[1752851454259,35.75879066,178.61,178.6,11.58147623]
[1752851454671,30.16,178.61,178.6,11.58147623]
[1752851454883,88.2,178.62,178.6,11.58147623]
[1752851455069,0.72,178.66,178.61,11.58147623]
[1752851455270,26.0,178.66,178.65,11.58147623]
[1752851455454,36.47722377,178.66,178.65,11.58147623]
[1752851455651,49.75028321,178.66,178.6,2.3599]
[1752851455850,61.33175944,178.66,178.61,11.58147623]
[1752851456050,12.30147623,178.65,178.6,11.58147623]
[1752851456252,26.0,178.65,178.56,1.5436]
[1752851456487,30.16,178.64,178.61,11.58147623]
[1752851456797,0.72,178.63,178.57,0.72]
[1752851457078,30.16,178.62,178.6,11.58147623]
[1752851457462,5.59879066,178.61,178.58,11.58147623]
[1752851457670,30.16,178.6,178.59,11.58147623]
[1752851458188,30.88,178.6,178.58,11.58147623]
[1752851458490,88.92,178.59,178.57,0.03]
[1752851458803,118.36,178.58,178.57,0.03]
[1752851459085,130.66147623,178.58,178.57,0.03]
[1752851459455,124.67973121,178.58,178.57,0.03]
[1752851459665,88.2,178.58,178.57,11.61147623]
[1752851459874,123.95973121,178.58,178.57,11.61147623]
[1752851460183,124.67973121,178.58,178.57,0.03]
[1752851460361,88.2,178.58,178.57,11.61147623]
[1752851460562,118.36,178.58,178.57,12.33147623]
[1752851460783,30.16,178.58,178.57,12.33147623]
[1752851461080,30.16,178.6,178.57,12.33147623]
[1752851461261,30.16,178.6,178.59,11.58147623]
[1752851461462,5.59732291,178.66,178.59,19.45981761]
[1752851461666,5.59669019,178.68,178.65,11.58147623]
[1752851461867,5.59669019,178.68,178.67,11.58147623]
[1752851462173,30.16,178.68,178.67,11.58147623]
[1752851462960,30.88,178.68,178.66,11.58147623]
[1752851463284,0.72,178.67,178.65,11.58147623]
[1752851463488,30.16,178.66,178.6,5.59903248]
[1752851463784,35.75722377,178.66,178.65,11.58147623]
[1752851464678,35.75722377,178.66,178.6,0.72]
[1752851464857,88.2,178.65,178.6,0.72]
[1752851465058,30.16,178.64,178.6,0.72]
[1752851465467,5.5981638,178.63,178.6,0.72]
[1752851465666,30.16,178.62,178.6,0.72]
[1752851465873,118.36,178.62,178.61,0.72]
[1752851466072,118.36,178.62,178.61,12.30147623]
[1752851466259,118.36,178.62,178.59,1.559]
[1752851466468,118.36,178.62,178.61,11.58147623]
[1752851467266,119.08,178.62,178.59,11.58147623]
[1752851467479,5.59910414,178.6,178.59,11.58147623]
[1752851467776,30.16,178.6,178.59,11.58147623]
[1752851467973,30.16,178.6,178.59,12.30147623]
[1752851468485,30.16,178.6,178.59,11.58147623]
[1752851468886,30.16,178.6,178.59,12.30147623]
[1752851469968,118.36,178.62,178.59,12.30147623]
[1752851470167,118.36,178.62,178.61,11.58147623]
[1752851470618,123.95851084,178.62,178.57,0.03]
[1752851470792,124.67851084,178.62,178.6,11.58147623]
[1752851471464,5.59910414,178.6,178.58,11.58147623]
[1752851471667,30.14,178.59,178.57,0.03]
[1752851471875,30.86,178.59,178.57,0.03]
[1752851472403,30.14,178.59,178.57,0.03]
[1752851472567,30.14,178.59,178.58,11.58147623]
[1752851473590,30.14,178.59,178.57,11.61147623]
[1752851473591,93.79973121,178.58,178.57,11.61147623]
[1752851474166,93.79973121,178.58,178.57,0.03]
[1752851474371,93.79973121,178.58,178.57,11.61147623]
[1752851474887,93.79973121,178.58,178.57,12.33147623]
[1752851475397,88.2,178.58,178.57,12.33147623]
[1752851478471,123.93973121,178.58,178.57,11.61147623]
[1752851478674,123.93973121,178.58,178.57,0.03]
[1752851478881,123.93973121,178.58,178.57,11.61147623]
[1752851479300,35.73973121,178.58,178.57,11.61147623]
[1752851479473,36.44973121,178.58,178.57,0.03]
[1752851481187,35.73973121,178.58,178.57,0.03]
[1752851481585,35.73973121,178.58,178.57,11.61147623]
[1752851481788,35.73973121,178.58,178.57,0.03]
[1752851483016,30.14,178.58,178.57,11.61147623]
[1752851483308,30.14,178.59,178.57,12.33147623]
[1752851483500,147.5,178.62,178.58,12.30147623]
[1752851483812,5.59910414,178.6,178.58,0.72]
[1752851484176,30.14,178.59,178.57,0.03]
[1752851485113,30.14,178.59,178.58,11.58147623]
[1752851486092,5.59973121,178.58,178.57,0.03]
[1752851487302,5.59973121,178.58,178.57,11.61147623]
[1752851487801,6.30973121,178.58,178.57,0.03]
[1752851488174,31.89053547,178.58,178.54,0.03]
[1752851488374,30.85,178.57,178.54,0.03]
[1752851489007,0.71,178.56,178.54,0.03]
[1752851489322,0.71,178.56,178.42,8.0065]
[1752851489323,41.72147623,178.55,178.42,8.0065]
[1752851489533,26.0,178.51,178.42,1.614]
[1752851489822,26.0,178.43,178.41,11.58147623]
[1752851490024,35.74475283,178.42,178.41,11.58147623]
[1752851490518,35.74475283,178.42,178.4,0.2]
[1752851490519,35.74475283,178.42,178.4,11.78147623]
[1752851490688,123.94475283,178.42,178.4,11.78147623]
[1752851490888,88.91,178.41,178.4,0.2]
[1752851491125,0.71,178.41,178.4,0.2]
[1752851491496,88.91,178.41,178.4,0.2]
[1752851492006,94.51506698,178.41,178.4,0.2]
[1752851492201,6.31506698,178.41,178.4,0.2]
[1752851492414,9.18254258,178.41,178.4,0.2]
[1752851492618,38.61254258,178.41,178.4,0.2]
[1752851493003,26.0,178.39,178.38,1e-08]
[1752851493207,67.72147623,178.39,178.38,1e-08]
[1752851493525,68.43147623,178.39,178.38,1e-08]
[1752851493726,56.85,178.39,178.38,1e-08]
[1752851493913,85.2161602,178.39,178.38,1e-08]
[1752851494221,39.97235209,178.35,178.34,1e-08]
[1752851494424,81.69382832,178.35,178.34,1e-08]
[1752851494612,82.40382832,178.35,178.34,1e-08]
[1752851494798,99.18851229,178.35,178.34,1e-08]
[1752851494996,26.0,178.32,178.31,1e-08]
[1752851495213,30.14,178.32,178.31,1e-08]
[1752851495411,26.0,178.33,178.31,1e-08]
[1752851495610,30.16,178.32,178.31,1e-08]
[1752851495818,13.97235209,178.35,178.31,11.58147624]
[1752851496121,13.97235209,178.35,178.34,11.58147623]
[1752851496315,44.13235209,178.35,178.34,11.58147623]
[1752851496520,49.73936885,178.35,178.32,11.58147623]
[1752851496839,50.44936885,178.35,178.31,1e-08]
[1752851497118,50.44936885,178.35,178.33,11.58147623]
[1752851497529,50.44936885,178.35,178.32,11.58147623]
[1752851497894,19.57936885,178.35,178.33,11.58147623]
[1752851498094,13.97235209,178.35,178.34,11.58147623]
[1752851498329,44.11235209,178.35,178.31,1.52930001]
[1752851498502,44.11235209,178.35,178.31,2.24930001]
[1752851498705,44.11235209,178.35,178.34,11.58147623]
[1752851498896,44.11235209,178.35,178.33,11.58147623]
[1752851498897,49.7193263,178.35,178.33,11.58147623]
[1752851499304,19.5793263,178.35,178.33,11.58147623]
[1752851499520,30.14,178.34,178.33,11.58147623]
[1752851500020,30.14,178.34,178.31,1.52930001]
[1752851500021,5.60758145,178.33,178.31,1.52930001]
[1752851500192,68.45147623,178.32,178.31,1e-08]
[1752851501018,56.87,178.32,178.31,1e-08]
[1752851501223,68.45147623,178.32,178.3,1e-08]
[1752851501422,12.29147623,178.31,178.3,1e-08]
[1752851501595,11.58147623,178.27,178.25,0.06]
[1752851501796,41.74147623,178.26,178.25,0.06]
[1752851501997,48.06125969,178.26,178.25,0.06]
[1752851502223,26.0,178.24,178.23,0.06]
[1752851502412,56.16,178.24,178.23,0.06]
[1752851503227,68.45147623,178.24,178.23,0.06]
[1752851503815,56.87,178.24,178.23,0.06]
[1752851504209,62.48041292,178.24,178.23,0.06]
[1752851504620,32.32041292,178.24,178.23,0.06]
[1752851505098,62.48041292,178.24,178.23,0.06]
[1752851505297,32.32041292,178.24,178.23,0.06]
[1752851505509,32.32041292,178.24,178.23,1e-08]
[1752851505924,61.77041292,178.24,178.23,1e-08]
[1752851506323,62.45041292,178.24,178.23,1e-08]
[1752851506625,74.03188915,178.24,178.22,1e-08]
[1752851506830,12.26147623,178.23,178.22,1e-08]
[1752851507141,42.42147623,178.23,178.22,1e-08]
[1752851507433,37.58147623,178.21,178.2,0.2]
[1752851507605,67.74147623,178.21,178.2,0.2]
[1752851507797,68.42147623,178.21,178.2,0.2]
[1752851508200,26.0,178.19,178.17,0.2]
[1752851508397,67.74147623,178.19,178.17,0.2]
[1752851508626,68.42147623,178.19,178.17,0.2]
[1752851508809,67.74147623,178.19,178.17,0.2]
[1752851509608,68.42147623,178.19,178.17,0.2]
[1752851509806,11.58147623,178.18,178.17,0.2]
[1752851510005,42.78468397,178.17,178.16,0.06]
[1752851510325,5.6138775,178.13,178.11,11.58147623]
[1752851510534,5.6138775,178.13,178.06,7.13881932]
[1752851510535,30.16,178.15,178.12,12.26147623]
[1752851510732,30.16,178.15,178.14,11.58147623]
[1752851510909,30.16,178.16,178.14,12.26147623]
[1752851511106,0.68,178.15,178.06,27.5228]
[1752851511319,0.68,178.15,178.06,1.5228]
[1752851511320,30.84,178.15,178.06,1.5228]
[1752851511804,11.58147623,178.12,178.06,1.5228]
[1752851512024,31.3,178.11,178.06,1.5228]
[1752851512225,36.9146725,178.11,178.07,0.68]
[1752851512839,11.58147623,178.1,178.06,1.5228]
[1752851513043,42.88147623,178.09,178.06,1.5228]
[1752851513644,11.58147623,178.08,178.06,1.5228]
[1752851513849,42.88147623,178.09,178.06,1.5228]
[1752851514237,5.61484697,178.1,178.07,12.26147623]
[1752851514437,36.91484697,178.1,178.08,0.68]
[1752851514638,36.91484697,178.1,178.08,12.26147623]
[1752851514853,5.61484697,178.1,178.08,12.26147623]
[1752851515052,5.61484697,178.1,178.08,0.68]
[1752851515350,42.90147623,178.09,178.06,1.5228]
[1752851515527,11.58147623,178.08,178.06,1.5228]
[1752851515731,31.34,178.07,178.06,1.5228]
[1752851515932,119.54,178.07,178.06,1.5228]
[1752851516165,19.6519048,178.1,178.04,0.68]
[1752851516340,31.32,178.09,178.05,11.58147623]
[1752851516532,31.32,178.09,178.06,0.68]
[1752851516733,42.90147623,178.09,178.05,11.58147623]
[1752851516934,0.68,178.08,178.02,0.68]
[1752851517128,31.34,178.07,178.02,0.68]
[1752851517379,31.34,178.07,178.03,11.58147623]
[1752851517739,42.92147623,178.07,178.02,12.26147623]
[1752851517941,43.60147623,178.07,178.01,1.6532]
[1752851518147,11.58147623,178.06,178.01,13.23467623]
[1752851518353,5.61671534,178.04,178.01,13.23467623]
[1752851518537,31.34,178.03,178.01,1.6532]
[1752851518736,31.34,178.03,178.02,3.0]
[1752851520243,43.60147623,178.03,178.02,3.0]
[1752851520432,49.21850706,178.03,178.02,3.0]
[1752851520858,37.63703083,178.03,178.02,3.0]
[1752851521071,49.21850706,178.03,178.02,3.0]
[1752851521262,16.78468397,177.99,177.91,1.6557]
[1752851521439,32.02,177.98,177.91,1.6557]
[1752851521634,11.58147623,177.95,177.91,1.6557]
[1752851521964,42.92147623,177.94,177.91,1.6557]
[1752851522173,43.00147623,177.94,177.91,1.6557]
[1752851522487,43.00147623,177.94,177.88,0.78]
[1752851522488,5.62050359,177.92,177.88,0.1]
[1752851522783,31.48,177.91,177.89,0.68]
[1752851523270,32.0,177.93,177.9,12.26147623]
[1752851523436,0.68,177.92,177.88,0.1]
[1752851523639,32.2,177.91,177.88,0.1]
[1752851523842,31.52,177.91,177.88,0.1]
[1752851524086,0.5,177.93,177.9,11.58147623]
[1752851524369,32.08,177.93,177.9,0.68]
[1752851524684,11.58147623,177.91,177.88,0.1]
[1752851524888,11.58147623,177.89,177.88,0.1]
[1752851525045,0.68,177.89,177.88,0.1]
[1752851525386,29.0461602,177.89,177.88,0.1]
[1752851525577,26.0,177.86,177.81,0.4149]
[1752851525738,11.58147623,177.82,177.75,7.0381]
[1752851525935,57.7,177.82,177.75,6.3581]
[1752851526162,69.28147623,177.82,177.76,0.68]
[1752851526362,5.62398065,177.81,177.77,11.58147623]
[1752851526578,69.28147623,177.82,177.77,0.68]
[1752851526776,74.90517678,177.82,177.77,11.58147623]
[1752851526936,74.90517678,177.82,177.77,0.68]
[1752851527340,63.32370055,177.82,177.76,11.58147623]
[1752851527540,63.32370055,177.82,177.75,18.61957623]
[1752851527740,37.58147623,177.79,177.72,0.68]
[1752851527963,11.58147623,177.77,177.7,6.5118]
[1752851528152,11.58147623,177.74,177.7,6.0118]
[1752851528357,37.46671837,177.73,177.67,11.58147623]
[1752851528540,37.46671837,177.73,177.67,6.30838331]
[1752851528541,11.58147623,177.72,177.67,6.30838331]
[1752851528738,31.82,177.71,177.68,0.68]
[1752851528964,16.78468397,177.73,177.68,11.58147623]
[1752851529274,31.82,177.72,177.69,11.58147623]
[1752851529441,2.84747169,177.74,177.7,0.68]
[1752851529642,31.86,177.74,177.72,11.58147623]
[1752851529854,0.68,177.73,177.67,0.68]
[1752851530063,37.58147623,177.71,177.65,1.5113]
[1752851530254,11.58147623,177.69,177.63,0.68]
[1752851530456,11.58147623,177.69,177.6,1.6635]
[1752851530457,11.58147623,177.65,177.6,1.6635]
[1752851530714,11.58147623,177.63,177.56,0.68]
[1752851530857,31.86,177.62,177.56,0.68]
[1752851531445,0.68,177.7,177.61,42.53953466]
[1752851531667,38.95104734,177.72,177.62,0.68]
[1752851531866,16.53953466,177.7,177.62,0.68]
[1752851532082,32.6,177.71,177.66,16.53953466]
[1752851532253,0.68,177.7,177.62,0.68]
[1752851532447,0.68,177.7,177.65,16.53953466]
[1752851532664,37.547384,177.71,177.68,16.53953466]
[1752851532846,0.68,177.73,177.7,16.53953466]
[1752851533049,0.68,177.77,177.68,0.68]
[1752851533252,31.96,177.76,177.69,0.68]
[1752851533577,32.08,177.75,177.73,16.53953466]
[1752851533746,32.08,177.75,177.69,0.68]
[1752851534069,5.6243323,177.8,177.74,16.53953466]
[1752851534270,94.7994,177.89,177.79,16.53953466]
[1752851534473,5.62271577,177.85,177.81,16.53953466]
[1752851534672,32.1,177.84,177.77,0.68]
[1752851534972,49.31953466,177.84,177.73,5.62620086]
[1752851535177,32.78,177.84,177.77,16.53953466]
[1752851535343,32.78,177.84,177.72,26.0]
[1752851535344,16.53953466,177.81,177.76,16.53953466]
[1752851535675,16.53953466,177.81,177.72,26.0]
[1752851535676,0.68,177.8,177.72,26.0]
[1752851535846,32.16,177.79,177.77,16.53953466]
[1752851536045,32.16,177.78,177.72,48.16628787]
[1752851536246,32.16,177.78,177.77,16.53953466]
[1752851536461,5.62426183,177.81,177.77,16.53953466]
[1752851536773,32.16,177.81,177.8,16.53953466]
[1752851537073,32.16,177.81,177.77,0.69]
[1752851537277,32.16,177.81,177.8,16.53953466]
[1752851537652,32.16,177.81,177.77,0.69]
[1752851537969,32.16,177.81,177.79,16.53953466]
[1752851538191,32.16,177.81,177.8,16.53953466]
[1752851539174,37.76368607,177.82,177.8,16.53953466]
[1752851539478,38.44368607,177.82,177.78,16.53953466]
[1752851539647,37.76368607,177.82,177.79,16.53953466]
[1752851539853,0.5,177.81,177.79,16.53953466]
[1752851540179,26.0,177.79,177.69,0.69]
[1752851540359,26.0,177.79,177.75,16.53953466]
[1752851540360,32.16,177.78,177.75,16.53953466]
[1752851540557,32.16,177.78,177.77,16.53953466]
[1752851540971,0.5,177.81,177.77,17.22953466]
[1752851541277,32.68,177.81,177.8,16.53953466]
[1752851541492,32.18,177.81,177.8,16.53953466]
[1752851541775,37.80418361,177.81,177.77,0.69]
[1752851541995,37.80418361,177.81,177.76,3.0]
[1752851542154,37.80418361,177.81,177.79,16.53953466]
[1752851542353,37.80418361,177.81,177.76,3.0]
[1752851542354,5.62366437,177.82,177.8,16.53953466]
[1752851542576,32.2,177.81,177.8,16.53953466]
[1752851542953,32.2,177.81,177.78,0.69]
[1752851543148,32.2,177.81,177.76,3.0]
[1752851543149,32.88,177.81,177.76,3.0]
[1752851543368,32.2,177.81,177.78,16.53953466]
[1752851543555,32.2,177.81,177.79,16.53953466]
[1752851543757,32.2,177.81,177.8,16.53953466]
[1752851543976,32.18,177.82,177.8,16.53953466]
[1752851544180,32.18,177.82,177.81,16.53953466]
[1752851544352,32.18,177.82,177.8,16.53953466]
[1752851544555,5.62398065,177.81,177.79,16.53953466]
[1752851544774,5.62398065,177.81,177.77,6.3194]
[1752851544775,5.62398065,177.81,177.78,16.53953466]
[1752851544981,32.16,177.8,177.78,16.53953466]
[1752851545284,32.2,177.79,177.76,3.0]
[1752851545463,32.2,177.79,177.78,16.53953466]
[1752851545974,32.2,177.79,177.76,3.69]
[1752851546172,32.2,177.79,177.78,16.53953466]
[1752851546688,37.8246133,177.79,177.78,16.53953466]
[1752851547462,37.8246133,177.79,177.76,3.69]
[1752851547659,32.2,177.79,177.78,16.53953466]
[1752851548482,37.82471157,177.79,177.77,16.53953466]
[1752851548653,32.2,177.79,177.78,16.53953466]
[1752851548856,32.2,177.79,177.78,17.22953466]
[1752851549259,38.28403237,177.81,177.78,17.22953466]
[1752851549465,32.66,177.81,177.8,16.53953466]
[1752851549892,32.16,177.81,177.8,16.53953466]
[1752851550067,32.16,177.81,177.8,17.22953466]
[1752851550494,32.16,177.81,177.8,16.53953466]
[1752851550864,32.16,177.81,177.8,17.22953466]
[1752851551067,32.16,177.81,177.8,12.38244938]
[1752851551486,32.1,177.82,177.8,12.38244938]
[1752851551662,32.1,177.82,177.81,11.69244938]
[1752851552661,40.48939865,177.82,177.81,11.69244938]
[1752851552866,34.86573428,177.82,177.81,12.38244938]
[1752851553263,88.2,177.88,177.81,12.38244938]
[1752851553495,13.90203428,177.9,177.87,11.69244938]
[1752851553789,13.90203428,177.9,177.89,11.69244938]
[1752851554092,45.98203428,177.9,177.89,11.69244938]
[1752851554295,51.60336844,177.9,177.89,11.69244938]
[1752851554497,45.98203428,177.9,177.89,12.38244938]
[1752851554708,13.90203428,177.9,177.89,12.38244938]
[1752851555208,13.90203428,177.9,177.89,0.69]
[1752851555367,13.90203428,177.9,177.89,12.38244938]
[1752851555564,13.90203428,177.9,177.89,0.69]
[1752851555763,13.90203428,177.9,177.89,12.38244938]
[1752851556568,13.90203428,177.9,177.89,0.69]
[1752851556776,13.90203428,177.9,177.83,6.7077]
[1752851556777,31.89567179,177.9,177.83,6.7077]
[1752851556998,32.16,177.89,177.83,6.0177]
[1752851557202,32.16,177.89,177.86,11.69244938]
[1752851557501,32.16,177.89,177.86,0.69]
[1752851557798,19.52322241,177.9,177.88,11.69244938]
[1752851557977,36.29189396,177.89,177.87,11.69244938]
[1752851558172,12.37244938,177.88,177.81,2.2654]
[1752851558381,43.87244938,177.87,177.82,11.69244938]
[1752851558594,0.68,177.86,177.81,1.5754]
[1752851558800,37.78271577,177.85,177.81,1.5754]
[1752851558981,37.78271577,177.85,177.81,13.26784938]
[1752851559188,37.78271577,177.85,177.83,11.69244938]
[1752851559508,37.78271577,177.85,177.82,0.69]
[1752851559687,37.78271577,177.85,177.83,11.69244938]
[1752851560281,38.46271577,177.85,177.81,11.69244938]
[1752851560495,50.15516515,177.85,177.79,6.1738]
[1752851560737,5.62334814,177.83,177.81,11.69244938]
[1752851560985,32.14,177.84,177.82,12.38244938]
[1752851561193,32.14,177.84,177.83,11.69244938]
[1752851561397,36.27061013,177.84,177.83,11.69244938]
[1752851562273,36.27061013,177.84,177.8,0.69]
[1752851562274,36.27061013,177.84,177.82,11.69244938]
[1752851562477,4.13061013,177.83,177.79,6.1738]
[1752851562694,37.74366437,177.82,177.81,11.69244938]
[1752851562894,36.25061013,177.82,177.81,11.69244938]
[1752851563106,4.13061013,177.82,177.81,12.38244938]
[1752851563494,32.1,177.86,177.81,12.38244938]
[1752851563680,32.1,177.86,177.85,11.69244938]
[1752851563883,36.24028837,177.86,177.85,11.69244938]
[1752851564091,4.14028837,177.86,177.85,12.38244938]
[1752851565413,4.14459031,177.86,177.85,11.69244938]
[1752851565589,4.14459031,177.86,177.83,0.69]
[1752851565783,5.65178097,177.88,177.85,11.69244938]
[1752851565989,4.14450572,177.87,177.84,11.69244938]
[1752851566313,36.24450572,177.86,177.84,11.69244938]
[1752851566482,4.14450572,177.85,177.84,11.69244938]
[1752851566684,4.14450572,177.85,177.8,0.67]
[1752851566884,4.14450572,177.84,177.83,11.69244938]
[1752851567085,4.14450572,177.84,177.8,0.67]
[1752851567281,36.24344483,177.83,177.81,11.69244938]
[1752851567496,32.1,177.83,177.79,6.1738]
[1752851567711,4.14379926,177.82,177.79,11.69244938]
[1752851567926,4.14324136,177.82,177.8,11.69244938]
[1752851568277,32.81,177.83,177.77,0.67]
[1752851568512,32.81,177.83,177.79,11.69244938]
[1752851568690,5.62366437,177.82,177.79,11.69244938]
[1752851569783,6.33366437,177.82,177.78,11.69244938]
[1752851569983,5.62366437,177.82,177.79,11.69244938]
[1752851570394,0.71,177.81,177.76,3.0]
[1752851570601,32.77,177.8,177.76,14.69244938]
[1752851570813,5.6246133,177.79,177.77,11.69244938]
[1752851571011,5.6246133,177.79,177.78,11.69244938]
[1752851571213,26.0,177.86,177.78,11.69244938]
[1752851571214,5.62303193,177.84,177.78,12.36244938]
[1752851571402,36.20772771,177.83,177.82,11.69244938]
[1752851572726,36.20772771,177.83,177.79,0.67]
[1752851572940,4.15655472,177.82,177.8,0.67]
[1752851573146,4.15655472,177.82,177.81,11.69244938]
[1752851573361,4.15655472,177.82,177.78,0.67]
[1752851573514,16.5590041,177.82,177.76,3.0]
[1752851573712,4.15655472,177.81,177.76,3.0]
[1752851573912,43.73244938,177.8,177.76,3.0]
[1752851574144,11.69244938,177.78,177.76,3.0]
[1752851574311,32.04,177.77,177.76,3.0]
[1752851574936,37.6652461,177.77,177.76,3.0]
[1752851575112,50.06769548,177.77,177.76,3.0]
[1752851575308,68.2896097,177.77,177.71,1.5697]
[1752851575513,4.15879896,177.76,177.7,210.41379335]
[1752851575710,43.71244938,177.75,177.7,210.41379335]
[1752851575910,15.85124834,177.76,177.71,11.69244938]
[1752851576115,32.71,177.75,177.7,192.42704397]
[1752851576320,12.40244938,177.74,177.7,192.42704397]
[1752851576531,0.71,177.73,177.7,192.42704397]
[1752851576734,32.0,177.72,177.7,193.09704397]
[1752851576919,32.0,177.72,177.7,192.42704397]
[1752851577928,11.69244938,177.71,177.7,192.42704397]
[1752851578235,32.0,177.72,177.7,192.42704397]
[1752851578811,17.31959472,177.71,177.7,192.42704397]
[1752851579023,18.02959472,177.71,177.7,192.42704397]
[1752851579816,6.33714534,177.71,177.7,192.42704397]
[1752851580121,6.33714534,177.71,177.7,163.75233681]
[1752851580321,5.62714534,177.71,177.7,163.75233681]
[1752851580527,18.02959472,177.71,177.7,163.75233681]
[1752851581036,23.12182931,177.71,177.7,41.95700359]
[1752851581225,42.78468397,177.69,177.68,1e-08]
[1752851581545,69.83244938,177.69,177.62,0.1]
[1752851581842,11.69244938,177.64,177.62,0.1]
[1752851582016,43.93244938,177.63,177.62,0.1]
[1752851582216,0.71,177.66,177.62,0.1]
[1752851582534,11.69244938,177.64,177.62,0.1]
[1752851582720,43.93244938,177.63,177.62,0.1]
[1752851582911,38.57967967,177.63,177.62,0.1]
[1752851583118,50.27212905,177.63,177.62,0.1]
[1752851583435,38.57967967,177.63,177.62,0.1]
[1752851583613,50.27212905,177.63,177.62,0.1]
[1752851583815,5.62943776,177.64,177.62,0.1]
[1752851584013,32.24,177.63,177.62,0.77]
[1752851584230,32.24,177.63,177.62,11.79244938]
[1752851584436,13.98053506,177.65,177.63,0.67]
[1752851584635,32.22,177.7,177.64,29.96309876]
[1752851584841,32.22,177.7,177.69,11.69244938]
[1752851585016,32.22,177.7,177.69,12.36244938]
[1752851585221,147.5,177.77,177.69,0.67]
[1752851585549,78.63946894,177.76,177.71,11.69244938]
[1752851585715,37.86556255,177.76,177.68,0.67]
[1752851586044,11.69244938,177.73,177.67,1.6276]
[1752851586242,32.24,177.72,177.67,1.6276]
[1752851586537,32.24,177.72,177.65,0.67]
[1752851586538,11.69244938,177.71,177.65,0.67]
[1752851586840,11.69244938,177.68,177.62,2.331]
[1752851587044,5.62872903,177.66,177.62,1.661]
[1752851587236,37.86847642,177.67,177.64,16.53071909]
[1752851587439,32.24,177.67,177.65,16.53071909]
[1752851587619,32.24,177.67,177.66,16.53071909]
[1752851587821,88.2,177.71,177.66,16.53071909]
[1752851587822,88.2,177.71,177.66,0.67]
[1752851588147,32.26,177.7,177.69,16.53071909]
[1752851588532,32.26,177.7,177.67,0.67]
[1752851588742,32.26,177.7,177.68,16.53071909]
[1752851588926,32.26,177.7,177.65,0.67]
[1752851588927,37.88761026,177.7,177.65,0.67]